bitfinex/quotes_SOLUSD_20251226
["timestamp","ask_amount","ask_price","bid_price","bid_amount"]
[1766749076874,8.09523083,123.53,123.48,16.95798154]
[1766749077081,10.27321237,123.53,123.48,16.95798154]
[1766749078177,10.27321237,123.53,123.49,8.09782168]
[1766749078368,20.23487913,123.55,123.49,8.09782168]
[1766749078369,8.09432332,123.55,123.5,2.17798154]
[1766749078675,2.17798154,123.54,123.5,2.17798154]
[1766749080980,8.09432332,123.55,123.5,10.27496604]
[1766749081181,2.17798154,123.54,123.5,10.27496604]
[1766749084967,2.17798154,123.54,123.5,8.0969845]
[1766749085875,2.17798154,123.55,123.5,10.27496604]
[1766749086954,16.95798154,123.56,123.51,2.17798154]
[1766749088163,2.17798154,123.56,123.52,10.27383646]
[1766749088756,2.17798154,123.56,123.52,8.09585492]
[1766749091584,2.17798154,123.55,123.52,8.09585492]
[1766749093688,2.17798154,123.55,123.51,25.05426789]
[1766749094164,8.09332832,123.56,123.5,69.59700857]
[1766749094365,8.09332832,123.56,123.5,61.5]
[1766749094366,2.17798154,123.53,123.5,61.5]
[1766749094669,2.17798154,123.54,123.49,16.95798154]
[1766749095490,10.2725288,123.54,123.5,8.09712272]
[1766749095691,10.2725288,123.54,123.49,25.05555884]
[1766749096488,10.2725288,123.54,123.49,10.27555884]
[1766749096686,10.2725288,123.54,123.49,25.05555884]
[1766749096989,10.2725288,123.54,123.5,10.27495307]
[1766749097885,10.2725288,123.54,123.5,8.09697153]
[1766749098084,2.17798154,123.54,123.5,10.27495307]
[1766749098593,10.27214909,123.55,123.5,10.27495307]
[1766749098773,8.09416755,123.55,123.51,2.17798154]
[1766749099282,10.27148991,123.56,123.51,2.17798154]
[1766749099790,2.17798154,123.55,123.51,2.17798154]
[1766749100474,10.27197654,123.55,123.51,2.17798154]
[1766749100888,2.17798154,123.54,123.5,8.09697153]
[1766749101580,2.17798154,123.53,123.49,84.37761485]
[1766749101779,2.17798154,123.52,123.48,80.03593258]
[1766749101980,2.17798154,123.52,123.48,94.81593258]
[1766749103794,2.17798154,123.52,123.48,96.99391412]
[1766749105691,2.17798154,123.52,123.48,35.49391412]
[1766749107389,2.17798154,123.53,123.48,35.49391412]
[1766749107595,20.23472278,123.55,123.48,35.49391412]
[1766749107596,2.17798154,123.52,123.48,35.49391412]
[1766749107985,3.40184992,123.52,123.48,36.7177825]
[1766749124707,20.23472278,123.55,123.48,36.7177825]
[1766749125007,3.40184992,123.52,123.48,36.7177825]
[1766749132910,28.32631919,123.56,123.49,3.40184992]
[1766749133109,3.40184992,123.53,123.49,3.40184992]
[1766749135518,3.40184992,123.55,123.5,11.49901591]
[1766749136917,3.40184992,123.54,123.5,11.49901591]
[1766749140720,3.40184992,123.54,123.5,8.09716599]
[1766749140922,8.09323405,123.56,123.51,3.40184992]
[1766749141105,11.49508397,123.56,123.51,3.40184992]
[1766749141699,11.49508397,123.56,123.51,18.18184992]
[1766749142105,11.49508397,123.56,123.51,26.27779538]
[1766749142314,11.49508397,123.56,123.51,22.87594546]
[1766749142501,11.49508397,123.56,123.51,26.27779538]
[1766749142709,3.40184992,123.55,123.51,22.87594546]
[1766749148408,3.40184992,123.54,123.51,22.87594546]
[1766749151936,3.40184992,123.55,123.51,26.27779538]
[1766749158144,3.40184992,123.55,123.51,22.87594546]
[1766749158329,11.49579119,123.55,123.51,26.27779538]
[1766749158840,8.09394127,123.55,123.51,26.27779538]
[1766749159235,11.49579119,123.55,123.51,18.18184992]
[1766749160744,28.32402686,123.57,123.51,18.18184992]
[1766749161045,8.8548281,123.56,123.51,26.27834829]
[1766749161244,3.40184992,123.56,123.51,26.27834829]
[1766749162841,11.49563496,123.56,123.51,26.27834829]
[1766749164946,8.09263206,123.57,123.53,3.40184992]
[1766749165244,8.09263206,123.57,123.54,3.40184992]
[1766749169940,8.09263206,123.57,123.54,2.17517697]
[1766749170140,8.09263206,123.57,123.53,2.17517697]
[1766749171141,2.17517697,123.55,123.51,27.39284993]
[1766749174150,2.17517697,123.55,123.51,25.21767296]
[1766749174342,10.26949602,123.55,123.51,25.21767296]
[1766749179443,2.17517697,123.53,123.51,10.43767296]
[1766749179648,2.17517697,123.53,123.5,8.09673668]
[1766749179649,2.17517697,123.53,123.49,25.05282975]
[1766749180755,2.17517697,123.54,123.49,25.05282975]
[1766749181565,2.17517697,123.53,123.49,25.05282975]
[1766749183661,2.17517697,123.52,123.49,14.78]
[1766749185577,8.09454427,123.54,123.48,20.71110093]
[1766749185866,2.17517697,123.53,123.49,2.17517697]
[1766749186467,2.17517697,123.53,123.48,20.71110093]
[1766749192970,2.17517697,123.52,123.48,20.71110093]
[1766749200879,8.0953829,123.53,123.48,20.71110093]
[1766749201064,2.17517697,123.52,123.48,20.71110093]
[1766749201260,28.33004859,123.54,123.49,10.27281548]
[1766749201581,10.26984894,123.54,123.5,2.17517697]
[1766749202603,10.26984894,123.54,123.49,10.27281548]
[1766749210985,10.26984894,123.54,123.5,2.17517697]
[1766749211487,10.26924029,123.55,123.52,2.17517697]
[1766749211669,10.26924029,123.55,123.51,2.17517697]
[1766749219689,10.26924029,123.55,123.52,2.17517697]
[1766749220794,10.26924029,123.55,123.51,2.17517697]
[1766749222287,10.26924029,123.55,123.52,2.17517697]
[1766749223480,10.26924029,123.55,123.5,8.09696799]
[1766749223682,10.26924029,123.55,123.52,2.17517697]
[1766749229304,10.26924029,123.55,123.51,2.17517697]
[1766749230012,11.49452433,123.55,123.51,3.40046101]
[1766749231312,8.09406332,123.55,123.51,3.40046101]
[1766749231483,11.49452433,123.55,123.51,3.40046101]
[1766749232705,8.09406332,123.55,123.51,11.49696445]
[1766749232913,11.49452433,123.55,123.51,11.49696445]
[1766749239108,27.69490972,123.56,123.51,31.73824046]
[1766749239312,8.09206122,123.58,123.54,3.40046101]
[1766749240505,8.09206122,123.58,123.55,3.40046101]
[1766749244721,3.40046101,123.56,123.52,14.78]
[1766749246212,11.4933364,123.57,123.52,26.27631413]
[1766749246516,8.09287539,123.57,123.53,3.40046101]
[1766749247911,11.4933364,123.57,123.52,26.27631413]
[1766749248318,8.09287539,123.57,123.52,26.27631413]
[1766749248514,11.4933364,123.57,123.52,26.27631413]
[1766749252022,11.4933364,123.57,123.52,22.87585312]
[1766749252216,11.4933364,123.57,123.52,26.27631413]
[1766749252919,11.4933364,123.57,123.52,22.87585312]
[1766749259738,3.40046101,123.56,123.52,22.87585312]
[1766749260027,11.49383345,123.56,123.52,8.09585312]
[1766749272243,3.40046101,123.55,123.51,18.53391469]
[1766749272939,3.40046101,123.52,123.48,8.09805106]
[1766749273141,18.18046101,123.54,123.48,8.09805106]
[1766749273338,3.40046101,123.52,123.48,18.53572402]
[1766749273535,3.40046101,123.52,123.48,8.09805106]
[1766749273914,3.40046101,123.52,123.49,10.43767296]
[1766749279047,3.40046101,123.52,123.49,18.53533787]
[1766749280552,8.09524552,123.53,123.49,18.53533787]
[1766749280731,8.09323405,123.56,123.5,3.40046101]
[1766749280932,11.49369506,123.56,123.51,3.40046101]
[1766749281135,3.40046101,123.55,123.51,3.40046101]
[1766749281528,3.40046101,123.55,123.5,3.40046101]
[1766749282359,3.40046101,123.54,123.5,3.40046101]
[1766749282658,3.40046101,123.54,123.49,118.46035309]
[1766749285951,8.09323405,123.56,123.49,118.46035309]
[1766749286132,3.40046101,123.54,123.49,118.46035309]
[1766749286847,3.40046101,123.53,123.49,118.46035309]
[1766749291960,2.17678597,123.53,123.49,117.23667805]
[1766749293060,2.17678597,123.54,123.49,117.23667805]
[1766749295758,10.27139956,123.54,123.49,117.23667805]
[1766749296559,8.09461359,123.54,123.49,96.99212384]
[1766749296765,10.27139956,123.54,123.49,96.99212384]
[1766749298275,2.17678597,123.53,123.49,88.89445893]
[1766749298436,2.17678597,123.53,123.49,86.71767296]
[1766749302160,2.17678597,123.53,123.49,25.21767296]
[1766749302567,2.17678597,123.53,123.49,27.39445893]
[1766749304460,2.17678597,123.52,123.49,10.43767296]
[1766749304866,8.0952928,123.53,123.49,10.43767296]
[1766749305067,2.17678597,123.52,123.49,10.43767296]
[1766749307091,10.27265207,123.52,123.48,69.59833719]
[1766749307246,2.17678597,123.51,123.48,61.5]
[1766749307744,2.17678597,123.51,123.46,111.26239628]
[1766749309169,2.17678597,123.5,123.46,109.08561031]
[1766749309875,2.17678597,123.49,123.46,10.43767296]
[1766749310068,2.17678597,123.48,123.45,0.2]
[1766749311066,3.24083451,123.51,123.45,0.2]
[1766749311258,2.17678597,123.48,123.45,0.2]
[1766749313075,8.09816208,123.49,123.45,0.2]
[1766749313251,2.17678597,123.48,123.45,0.2]
[1766749314176,2.17678597,123.49,123.45,0.2]
[1766749315977,10.27478521,123.49,123.45,0.2]
[1766749319971,10.27416411,123.5,123.45,10.47703827]
[1766749321657,2.17678597,123.49,123.45,8.3002523]
[1766749323278,10.27416411,123.5,123.45,10.47703827]
[1766749324373,2.17678597,123.49,123.45,8.3002523]
[1766749329484,8.0965104,123.51,123.46,2.17678597]
[1766749329685,8.0965104,123.51,123.46,16.95678597]
[1766749330588,10.27329637,123.51,123.46,16.95678597]
[1766749331988,10.27329637,123.51,123.46,25.05634104]
[1766749332286,10.27329637,123.51,123.46,22.87955507]
[1766749332489,10.27329637,123.51,123.46,25.05634104]
[1766749332683,2.17678597,123.51,123.46,25.05634104]
[1766749336693,10.27292671,123.52,123.47,10.27563668]
[1766749340392,2.17678597,123.52,123.47,10.27563668]
[1766749342396,2.17678597,123.52,123.47,8.09885071]
[1766749342595,2.17678597,123.52,123.47,10.27563668]
[1766749349200,2.17678597,123.52,123.47,8.09885071]
[1766749349378,2.17678597,123.52,123.47,10.27563668]
[1766749352090,3.40214382,123.52,123.47,11.50099453]
[1766749364713,8.0954928,123.53,123.47,11.50099453]
[1766749365017,8.85990335,123.52,123.47,31.74882801]
[1766749365194,3.40214382,123.52,123.47,31.74882801]
[1766749369547,3.40214382,123.52,123.47,93.24882801]
[1766749375849,3.40214382,123.52,123.47,89.84668419]
[1766749376050,3.40214382,123.52,123.47,93.24882801]
[1766749377036,35.79580914,123.53,123.47,93.24882801]
[1766749377354,5.4652523,123.52,123.47,93.24882801]
[1766749379354,8.86739612,123.52,123.47,89.84668419]
[1766749379571,3.40214382,123.52,123.47,89.84668419]
[1766749379735,3.40214382,123.51,123.47,69.59885071]
[1766749381266,3.40214382,123.51,123.47,8.09885071]
[1766749381737,35.7964035,123.52,123.47,11.50099453]
[1766749381939,5.46555045,123.51,123.47,11.50099453]
[1766749387156,5.46555045,123.51,123.47,8.09885071]
[1766749387355,5.46555045,123.51,123.47,11.50099453]
[1766749401162,35.7983717,123.52,123.47,11.50099453]
[1766749401361,5.46596406,123.51,123.47,11.50099453]
[1766749403193,16.96465207,123.51,123.47,8.09885071]
[1766749403385,11.49868801,123.51,123.47,8.09885071]
[1766749403991,35.80038744,123.52,123.47,11.50099453]
[1766749404189,5.46595556,123.51,123.47,11.50099453]
[1766749408398,11.49806657,123.52,123.47,11.50099453]
[1766749410578,24.30035235,123.53,123.48,11.50054339]
[1766749410779,5.46557484,123.52,123.48,11.50054339]
[1766749412107,27.70249617,123.53,123.48,11.50054339]
[1766749413086,3.40214382,123.52,123.48,11.50054339]
[1766749413981,2.17715258,123.52,123.48,8.09839957]
[1766749414176,2.17715258,123.52,123.48,10.27555215]
[1766749416201,2.17715258,123.52,123.48,8.09839957]
[1766749416510,32.39562813,123.53,123.48,8.09839957]
[1766749416701,2.17715258,123.52,123.48,8.09839957]
[1766749419506,2.17715258,123.52,123.48,10.27555215]
[1766749422010,2.17715258,123.52,123.48,8.09839957]
[1766749431523,2.17715258,123.52,123.48,10.27555215]
[1766749437723,2.17715258,123.52,123.48,8.09839957]
[1766749442329,32.39562813,123.53,123.48,8.09839957]
[1766749442625,2.17715258,123.52,123.48,8.09839957]
[1766749444103,10.27309613,123.52,123.48,8.09839957]
[1766749444305,2.17715258,123.51,123.47,61.5]
[1766749445138,2.17715258,123.5,123.47,61.5]
[1766749445707,2.17715258,123.5,123.46,25.05655141]
[1766749447446,10.27377515,123.51,123.46,25.05655141]
[1766749453736,10.27377515,123.51,123.46,10.27655141]
[1766749456023,8.09605272,123.52,123.47,2.17715258]
[1766749457437,8.09605272,123.52,123.48,8.09847748]
[1766749459815,2.17715258,123.52,123.48,8.09847748]
[1766749461645,32.39582676,123.53,123.48,8.09847748]
[1766749461821,7.63748707,123.52,123.48,8.09847748]
[1766749462021,2.17715258,123.52,123.48,8.09847748]
[1766749464640,2.17715258,123.52,123.47,8.09913339]
[1766749464942,2.17715258,123.52,123.47,30.52411945]
[1766749468344,2.17715258,123.52,123.48,10.27537568]
[1766749468947,34.57297934,123.53,123.48,10.27537568]
[1766749469123,5.46066548,123.52,123.48,10.27537568]
[1766749469748,32.39582676,123.53,123.48,10.27537568]
[1766749469925,25.05185166,123.54,123.49,10.27492986]
[1766749470321,49.35023581,123.54,123.49,10.27492986]
[1766749470749,5.4602462,123.53,123.49,10.27492986]
[1766749471648,32.39308323,123.54,123.5,2.17715258]
[1766749471835,8.09469908,123.54,123.5,2.17715258]
[1766749472035,10.27185166,123.54,123.5,2.17715258]
[1766749473767,10.27185166,123.54,123.49,10.27492986]
[1766749474062,10.27185166,123.54,123.49,11.49876515]
[1766749474063,11.49568695,123.54,123.49,11.49876515]
[1766749476755,11.49568695,123.54,123.5,3.40098787]
[1766749483569,11.49568695,123.54,123.49,8.09777728]
[1766749483770,11.49568695,123.54,123.5,3.40098787]
[1766749501895,3.40098787,123.53,123.48,84.37845782]
[1766749502081,3.40098787,123.53,123.48,87.77944569]
[1766749502789,52.62944392,123.54,123.48,87.77944569]
[1766749502995,3.40098787,123.53,123.48,87.77944569]
[1766749503393,11.49672534,123.53,123.48,87.77944569]
[1766749504396,11.49672534,123.53,123.48,26.27944569]
[1766749506401,11.49672534,123.53,123.48,22.87845782]
[1766749506609,11.49672534,123.53,123.48,26.27944569]
[1766749509903,11.49672534,123.53,123.49,3.40098787]
[1766749510703,11.49672534,123.53,123.48,22.87845782]
[1766749510908,11.49706462,123.52,123.47,11.49983342]
[1766749511075,3.40098787,123.51,123.47,11.49983342]
[1766749511403,3.40098787,123.51,123.47,22.87884555]
[1766749512706,8.09607675,123.52,123.47,22.87884555]
[1766749513008,3.40098787,123.51,123.47,22.87884555]
[1766749516906,3.40098787,123.51,123.47,26.27983342]
[1766749517802,3.40098787,123.51,123.47,22.87884555]
[1766749518010,3.40098787,123.51,123.47,26.27983342]
[1766749520922,11.49706462,123.52,123.47,26.27983342]
[1766749523022,3.40098787,123.51,123.47,26.27983342]
[1766749523807,3.40098787,123.51,123.47,22.87884555]
[1766749524008,3.40098787,123.51,123.47,26.27983342]
[1766749528919,11.49774398,123.51,123.47,18.18098787]
[1766749529424,11.49774398,123.51,123.47,3.40098787]
[1766749534134,11.49774398,123.51,123.46,8.09956004]
[1766749534314,11.49774398,123.51,123.47,3.40098787]
[1766749536015,10.27424751,123.51,123.47,2.1774914]
[1766749536438,8.09675611,123.51,123.47,10.27648609]
[1766749536616,10.27424751,123.51,123.47,10.27648609]
[1766749536816,8.09675611,123.51,123.47,10.27648609]
[1766749537735,26.47784375,123.52,123.47,10.27648609]
[1766749537917,10.27326201,123.53,123.48,2.1774914]
[1766749538117,5.45778678,123.52,123.48,2.1774914]
[1766749538932,7.63527818,123.52,123.48,10.27593809]
[1766749539117,2.1774914,123.52,123.48,10.27593809]
[1766749539513,2.1774914,123.52,123.48,8.09844669]
[1766749540434,24.30035235,123.53,123.49,2.1774914]
[1766749540737,6.82564855,123.55,123.48,14.78]
[1766749540738,2.1774914,123.56,123.51,2.1774914]
[1766749540913,26.47194011,123.56,123.51,2.1774914]
[1766749541115,26.47194011,123.56,123.51,12.61516436]
[1766749541430,2.1774914,123.56,123.52,2.1774914]
[1766749542538,32.38529583,123.57,123.52,10.27333535]
[1766749542731,34.56278723,123.57,123.52,10.27333535]
[1766749542933,10.27030576,123.57,123.52,10.27333535]
[1766749543232,34.56278723,123.57,123.52,10.27333535]
[1766749543530,10.27030576,123.57,123.52,10.27333535]
[1766749543735,10.27030576,123.57,123.53,2.1774914]
[1766749544122,34.56218007,123.58,123.53,2.1774914]
[1766749544315,34.56218007,123.58,123.54,2.1774914]
[1766749544833,10.2696986,123.58,123.54,2.1774914]
[1766749545732,44.51931302,123.59,123.55,2.1774914]
[1766749545733,24.29051455,123.59,123.55,2.1774914]
[1766749545921,2.1774914,123.6,123.55,2.1774914]
[1766749546718,34.55473612,123.6,123.55,10.27124122]
[1766749548739,32.37724472,123.6,123.55,10.27124122]
[1766749548920,34.55473612,123.6,123.55,10.27124122]
[1766749551818,32.37724472,123.6,123.55,10.27124122]
[1766749552024,34.55473612,123.6,123.55,10.27124122]
[1766749553144,24.28658166,123.6,123.56,2.1774914]
[1766749553333,26.46407306,123.6,123.56,2.1774914]
[1766749554944,24.28658166,123.6,123.56,2.1774914]
[1766749555246,2.1774914,123.58,123.54,25.05203567]
[1766749556350,26.46407306,123.59,123.54,25.05203567]
[1766749558049,32.37836561,123.59,123.54,25.05203567]
[1766749558344,2.1774914,123.58,123.54,25.05203567]
[1766749560857,2.1774914,123.57,123.53,71.77243572]
[1766749561039,8.09196241,123.58,123.53,61.5]
[1766749561242,2.1774914,123.55,123.53,61.5]
[1766749561548,2.1774914,123.55,123.51,25.05361541]
[1766749568361,2.1774914,123.54,123.5,8.09690973]
[1766749568541,10.27092418,123.56,123.51,14.78]
[1766749568735,10.27092418,123.56,123.51,16.9574914]
[1766749568939,34.56537289,123.56,123.51,16.9574914]
[1766749571165,34.56537289,123.56,123.51,25.0538583]
[1766749571338,10.27092418,123.56,123.51,25.0538583]
[1766749571540,2.1774914,123.57,123.52,2.1774914]
[1766749571840,26.46997287,123.57,123.52,2.1774914]
[1766749573262,26.46997287,123.57,123.52,10.27276616]
[1766749573666,2.1774914,123.56,123.52,10.27276616]
[1766749575263,2.1774914,123.56,123.52,8.09527476]
[1766749575452,2.1774914,123.54,123.52,14.78]
[1766749578658,34.56590305,123.55,123.52,14.78]
[1766749578971,2.1774914,123.53,123.49,10.43767296]
[1766749579271,2.1774914,123.53,123.49,18.53548321]
[1766749579443,26.47194011,123.53,123.49,18.53548321]
[1766749584873,26.47194011,123.53,123.49,20.71297461]
[1766749586178,26.47194011,123.53,123.49,35.49297461]
[1766749586470,26.47194011,123.53,123.49,20.71297461]
[1766749586675,26.47194011,123.53,123.49,35.49297461]
[1766749588375,24.29444871,123.53,123.49,35.49297461]
[1766749588597,26.47194011,123.53,123.49,35.49297461]
[1766749590477,26.47194011,123.53,123.49,33.31548321]
[1766749590658,24.29444871,123.53,123.49,33.31548321]
[1766749590860,26.47194011,123.53,123.49,33.31548321]
[1766749591857,26.47194011,123.53,123.49,35.49297461]
[1766749592059,24.29444871,123.53,123.49,35.49297461]
[1766749592280,2.1774914,123.53,123.49,33.31548321]
[1766749592482,2.1774914,123.52,123.49,33.31548321]
[1766749593895,2.1774914,123.52,123.49,14.78]
[1766749594080,2.1774914,123.51,123.48,14.78]
[1766749594690,26.47784375,123.52,123.48,22.87846977]
[1766749595296,26.47784375,123.52,123.48,25.05596117]
[1766749595497,2.1774914,123.52,123.48,25.05596117]
[1766749596011,34.3753072,123.53,123.48,26.27992876]
[1766749596802,34.3753072,123.53,123.48,22.87846977]
[1766749596990,34.3753072,123.53,123.48,26.27992876]
[1766749597404,11.49683743,123.53,123.48,26.27992876]
[1766749597904,24.30035235,123.52,123.48,26.27992876]
[1766749598108,11.49683743,123.53,123.48,26.27992876]
[1766749598501,27.70181134,123.53,123.49,3.40145899]
[1766749601309,27.70181134,123.53,123.49,11.49924618]
[1766749604906,27.70181134,123.53,123.49,8.09778719]
[1766749608106,35.79707645,123.53,123.49,8.09778719]
[1766749609610,3.40145899,123.52,123.48,26.2796625]
[1766749610110,3.40145899,123.52,123.48,22.87820351]
[1766749610489,3.40145899,123.51,123.48,14.78]
[1766749614612,32.39644479,123.52,123.48,14.78]
[1766749614909,3.40145899,123.51,123.48,14.78]
[1766749616212,3.40145899,123.51,123.47,39.81106174]
[1766749616593,3.40145899,123.51,123.47,47.91012184]
[1766749617216,3.40145899,123.51,123.47,51.31158083]
[1766749617902,11.49755143,123.52,123.47,51.31158083]
[1766749625423,11.49755143,123.52,123.47,47.91012184]
[1766749625615,11.49755143,123.52,123.47,51.31158083]
[1766749629226,3.40145899,123.51,123.47,47.91012184]
[1766749629424,3.40145899,123.51,123.47,51.31158083]
[1766749630302,11.49755143,123.52,123.47,51.31158083]
[1766749633531,3.40145899,123.51,123.47,47.91012184]
[1766749633732,11.49825613,123.51,123.47,39.81106174]
[1766749633920,3.40145899,123.5,123.47,39.81106174]
[1766749634830,3.40145899,123.49,123.47,25.03106174]
[1766749635327,3.40145899,123.5,123.47,25.03106174]
[1766749635528,3.40145899,123.5,123.46,25.21767296]
[1766749635739,3.40145899,123.49,123.46,14.78]
[1766749636425,3.40145899,123.48,123.45,0.2]
[1766749637739,11.50021128,123.48,123.45,0.2]
[1766749638536,3.40145899,123.47,123.45,0.2]
[1766749640839,8.09875229,123.48,123.45,0.2]
[1766749642040,11.50021128,123.48,123.45,0.2]
[1766749642346,11.4997508,123.49,123.45,0.2]
[1766749643040,26.47888747,123.5,123.45,11.70173548]
[1766749643238,11.49888747,123.5,123.45,11.70173548]
[1766749643932,3.40145899,123.49,123.45,11.70173548]
[1766749646050,11.49928183,123.49,123.45,8.30027649]
[1766749646228,11.49928183,123.49,123.45,11.70173548]
[1766749647049,11.49928183,123.49,123.45,26.48173548]
[1766749648048,11.49928183,123.49,123.45,23.08027649]
[1766749649262,11.49928183,123.49,123.45,26.48173548]
[1766749651944,11.49928183,123.49,123.45,23.08027649]
[1766749653351,11.49928183,123.49,123.45,8.30027649]
[1766749653550,8.09735221,123.5,123.46,3.40145899]
[1766749653741,11.49731391,123.52,123.47,3.40145899]
[1766749653935,8.09585492,123.52,123.47,3.40145899]
[1766749654137,11.49731391,123.52,123.47,3.40145899]
[1766749654652,3.40145899,123.51,123.47,3.40145899]
[1766749656148,11.49845647,123.51,123.47,3.40145899]
[1766749656357,11.49845647,123.51,123.47,18.18145899]
[1766749656853,11.49845647,123.51,123.47,14.78]
[1766749657254,3.40145899,123.5,123.47,14.78]
[1766749657454,11.49845647,123.51,123.47,14.78]
[1766749658033,10.27460103,123.51,123.47,14.78]
[1766749660758,8.09585492,123.52,123.47,16.95760355]
[1766749660960,2.17760355,123.51,123.47,16.95760355]
[1766749661764,10.27435584,123.51,123.47,14.78]
[1766749667158,2.17760355,123.51,123.47,14.78]
[1766749667745,2.17760355,123.51,123.47,16.95760355]
[1766749669173,10.27345847,123.52,123.47,16.95760355]
[1766749675178,28.44909992,123.53,123.48,8.09847748]
[1766749675373,30.62670347,123.53,123.49,2.17760355]
[1766749675566,10.272994,123.53,123.49,2.17760355]
[1766749676275,10.272994,123.53,123.48,10.27608103]
[1766749676475,2.17760355,123.52,123.47,84.37896064]
[1766749676677,2.17760355,123.52,123.47,86.55656419]
[1766749679081,10.27362769,123.52,123.47,86.55656419]
[1766749680182,10.27362769,123.52,123.47,2.17760355]
[1766749680384,10.27362769,123.52,123.47,16.95760355]
[1766749680571,34.57594856,123.52,123.47,16.95760355]
[1766749681283,10.27362769,123.52,123.47,25.05663763]
[1766749681583,34.57594856,123.52,123.47,25.05663763]
[1766749681884,10.27362769,123.52,123.47,25.05663763]
[1766749683380,34.57594856,123.52,123.47,25.05663763]
[1766749686166,10.27424926,123.51,123.47,22.87903408]
[1766749686882,2.17760355,123.5,123.45,74.31527651]
[1766749687083,2.17760355,123.5,123.46,14.78]
[1766749687482,2.17760355,123.5,123.46,16.95760355]
[1766749688592,10.27479447,123.5,123.46,16.95760355]
[1766749689789,8.09719092,123.5,123.46,16.95760355]
[1766749689973,8.09719092,123.5,123.46,25.05735948]
[1766749692113,10.27479447,123.5,123.46,25.05735948]
[1766749692911,34.57865986,123.51,123.46,25.05735948]
[1766749693487,2.17760355,123.5,123.46,8.09962079]
[1766749700698,2.17760355,123.5,123.46,10.27722434]
[1766749703498,2.17760355,123.5,123.46,8.09962079]
[1766749704398,32.40105631,123.51,123.46,8.09962079]
[1766749704602,7.6400907,123.5,123.46,8.09962079]
[1766749704783,2.17760355,123.5,123.46,8.09962079]
[1766749705695,24.3042897,123.51,123.47,2.17760355]
[1766749705899,10.2736894,123.52,123.47,2.17760355]
[1766749706202,5.46218032,123.51,123.47,2.17760355]
[1766749711011,13.55871027,123.51,123.47,2.17760355]
[1766749711189,8.09652995,123.51,123.47,2.17760355]
[1766749712907,10.2741335,123.51,123.47,2.17760355]
[1766749714808,10.2741335,123.51,123.46,10.27722434]
[1766749715709,10.2741335,123.51,123.46,8.09962079]
[1766749715910,10.2741335,123.51,123.46,10.27722434]
[1766749716905,10.2741335,123.51,123.46,8.09962079]
[1766749717088,10.2741335,123.51,123.46,10.27722434]
[1766749718206,10.2741335,123.51,123.46,8.09962079]
[1766749718382,10.2741335,123.51,123.46,10.27722434]
[1766749720009,11.4994075,123.51,123.46,11.50249834]
[1766749725296,8.09652995,123.51,123.47,3.40287755]
[1766749725603,8.09652995,123.51,123.46,8.09962079]
[1766749725809,8.09652995,123.51,123.47,3.40287755]
[1766749728308,8.09652995,123.51,123.46,22.87962079]
[1766749728511,8.09652995,123.51,123.47,3.40287755]
[1766749729211,8.09652995,123.51,123.46,22.87962079]
[1766749729410,8.09652995,123.51,123.47,3.40287755]
[1766749730714,11.4994075,123.51,123.47,3.40287755]
[1766749730886,11.4994075,123.51,123.46,26.28249834]
[1766749731092,3.40287755,123.5,123.46,11.50249834]
[1766749731300,3.40287755,123.5,123.46,26.28249834]
[1766749731827,3.40287755,123.49,123.45,72.13767296]
[1766749732214,3.40287755,123.49,123.45,80.23808955]
[1766749732893,3.40287755,123.49,123.45,18.73808955]
[1766749733617,11.50028753,123.5,123.45,22.1409671]
[1766749735121,11.50028753,123.5,123.45,18.73808955]
[1766749735425,11.50028753,123.5,123.45,22.1409671]
[1766749736597,11.50028753,123.5,123.46,3.40287755]
[1766749740620,32.40109207,123.51,123.46,11.50251832]
[1766749740822,5.46110675,123.5,123.46,11.50251832]
[1766749741621,35.80396962,123.51,123.46,11.50251832]
[1766749741819,5.46083576,123.5,123.46,8.09964077]
[1766749742028,5.46083576,123.5,123.46,11.50251832]
[1766749743542,13.55803846,123.5,123.46,11.50251832]
[1766749743724,8.0972027,123.5,123.46,11.50251832]
[1766749747945,32.40108705,123.51,123.46,11.50251832]
[1766749748525,35.8039646,123.51,123.46,11.50251832]
[1766749749636,32.40108705,123.51,123.46,11.50251832]
[1766749749942,8.09679735,123.51,123.46,11.50251832]
[1766749751241,32.39911822,123.51,123.46,11.50251832]
[1766749752545,35.80199577,123.51,123.46,11.50251832]
[1766749753340,3.40287755,123.5,123.46,8.09964077]
[1766749755246,3.77287755,123.5,123.47,0.72]
[1766749756323,11.8701189,123.5,123.47,0.72]
[1766749756723,36.1744086,123.5,123.47,0.72]
[1766749756955,11.8701189,123.5,123.47,0.72]
[1766749758554,36.1744086,123.5,123.47,0.72]
[1766749760162,32.77153105,123.5,123.47,0.72]
[1766749760368,36.1744086,123.5,123.47,0.72]
[1766749766672,32.77153105,123.5,123.47,0.72]
[1766749766840,36.1744086,123.5,123.47,0.72]
[1766749769275,32.77153105,123.5,123.47,0.72]
[1766749769569,3.40287755,123.49,123.47,0.72]
[1766749770468,36.1744086,123.5,123.47,0.72]
[1766749771470,3.77287755,123.49,123.46,0.72]
[1766749772471,11.87079951,123.49,123.46,0.72]
[1766749774391,3.40287755,123.47,123.44,0.2]